[Event "Masters Tournament (MTO)"]
[Site "Biel, Switzerland"]
[Date "2026.07.17"]
[Round "5.35"]
[White "Alsaleh, Eissa"]
[Black "Lumsdon, Andrew"]
[Result "0-1"]
[TimeControl "100+30+30sec/move"]
[WhiteTitle "-"]
[BlackTitle "-"]
[WhiteFideId "10312463"]
[BlackFideId "1308840"]
[WhiteElo "1908"]
[BlackElo "2033"]

1. e4 {[%clk 01:40:29]} {[%emt 00:00:30]} d6 {[%clk 01:40:50]} {[%emt
00:00:10]} 2. d4 {[%clk 01:40:30]} {[%emt 00:00:29]} g6 {[%clk 01:41:14]}
{[%emt 00:00:07]} 3. Nc3 {[%clk 01:40:24]} {[%emt 00:00:34]} Bg7 {[%clk
01:41:34]} {[%emt 00:00:10]} 4. f4 {[%clk 01:39:58]} {[%emt 00:00:56]} Nd7
{[%clk 01:41:53]} {[%emt 00:00:11]} 5. Nf3 {[%clk 01:39:36]} {[%emt 00:00:53]}
Nh6 {[%clk 01:41:56]} {[%emt 00:00:27]} 6. Bd3 {[%clk 01:37:56]} {[%emt
00:02:08]} c6 {[%clk 01:41:38]} {[%emt 00:00:49]} 7. O-O {[%clk 01:36:51]}
{[%emt 00:01:35]} O-O {[%clk 01:33:16]} {[%emt 00:00:05]} 8. e5 {[%clk
01:36:43]} {[%emt 00:09:25]} dxe5 {[%clk 01:32:44]} {[%emt 00:01:01]} 9. dxe5
{[%clk 01:36:38]} {[%emt 00:00:36]} Ng4 {[%clk 01:20:41]} {[%emt 00:12:33]} 10.
Be2 {[%clk 01:28:53]} {[%emt 00:08:14]} Qb6+ {[%clk 01:13:41]} {[%emt
00:07:30]} 11. Nd4 {[%clk 01:27:24]} {[%emt 00:02:00]} Ndxe5 {[%clk 01:06:25]}
{[%emt 00:07:45]} 12. fxe5 {[%clk 01:20:11]} {[%emt 00:07:44]} Rd8 {[%clk
01:01:45]} {[%emt 00:05:09]} 13. Bxg4 {[%clk 01:09:57]} {[%emt 00:10:44]} Rxd4
{[%clk 01:01:58]} {[%emt 00:00:17]} 14. Be3 {[%clk 01:08:55]} {[%emt 00:01:33]}
Rxd1 {[%clk 01:01:52]} {[%emt 00:00:36]} 15. Bxb6 {[%clk 01:08:53]} {[%emt
00:00:32]} Rxa1 {[%clk 01:02:06]} {[%emt 00:00:16]} 16. Rxa1 {[%clk 01:09:07]}
{[%emt 00:00:16]} axb6 {[%clk 01:00:17]} {[%emt 00:02:19]} 17. Bxc8 {[%clk
01:05:34]} {[%emt 00:04:03]} Rxc8 {[%clk 01:00:40]} {[%emt 00:00:06]} 18. Re1
{[%clk 01:05:18]} {[%emt 00:00:46]} Rd8 {[%clk 01:00:46]} {[%emt 00:00:24]} 19.
Re2 {[%clk 01:02:35]} {[%emt 00:03:14]} b5 {[%clk 01:01:05]} {[%emt 00:00:11]}
20. Kf2 {[%clk 01:01:17]} {[%emt 00:01:48]} b4 {[%clk 01:00:33]} {[%emt
00:01:03]} 21. Na4 {[%clk 01:00:35]} {[%emt 00:01:12]} Rd5 {[%clk 01:00:46]}
{[%emt 00:00:15]} 22. e6 {[%clk 01:00:21]} {[%emt 00:00:45]} b5 {[%clk
01:00:47]} {[%emt 00:00:28]} 23. exf7+ {[%clk 00:57:43]} {[%emt 00:03:08]} Kxf7
{[%clk 01:01:07]} {[%emt 00:00:09]} 0-1

[Event "Masters Tournament (MTO)"]
[Site "Biel, Switzerland"]
[Date "2026.07.17"]
[Round "5.36"]
[White "Aryan, Goyal"]
[Black "Joly, Fabrice"]
[Result "1-0"]
[TimeControl "100+30+30sec/move"]
[WhiteTitle "-"]
[BlackTitle "-"]
[WhiteFideId "366108825"]
[BlackFideId "612235"]
[WhiteElo "2029"]
[BlackElo "1907"]

1. e4 {[%clk 01:40:54]} {[%emt 00:00:05]} e5 {[%clk 01:40:18]} {[%emt
00:00:41]} 2. Nf3 {[%clk 01:41:17]} {[%emt 00:00:07]} Nf6 {[%clk 01:40:26]}
{[%emt 00:00:23]} 3. Nxe5 {[%clk 01:41:28]} {[%emt 00:00:20]} d6 {[%clk
01:40:35]} {[%emt 00:00:21]} 4. Nf3 {[%clk 01:41:53]} {[%emt 00:00:06]} Nxe4
{[%clk 01:40:57]} {[%emt 00:00:08]} 5. Nc3 {[%clk 01:42:15]} {[%emt 00:00:08]}
Nf6 {[%emt 00:00:21]} 6. d4 {[%clk 01:42:33]} Be7 {[%clk 01:40:07]} {[%emt
00:01:40]} 7. Bd3 {[%clk 01:39:31]} {[%emt 00:03:31]} O-O {[%clk 01:38:56]}
{[%emt 00:01:43]} 8. h3 {[%clk 01:39:27]} {[%emt 00:00:33]} h6 {[%clk
01:34:12]} {[%emt 00:05:15]} 9. Be3 {[%clk 01:38:22]} {[%emt 00:01:34]} Be6
{[%clk 01:29:32]} {[%emt 00:05:11]} 10. Qd2 {[%clk 01:38:19]} {[%emt 00:00:32]}
c5 {[%clk 01:26:08]} {[%emt 00:03:54]} 11. g4 {[%clk 01:31:37]} {[%emt
00:07:12]} Nd5 {[%clk 01:08:54]} {[%emt 00:17:43]} 12. dxc5 {[%clk 01:14:05]}
{[%emt 00:18:04]} dxc5 {[%clk 00:53:47]} {[%emt 00:15:37]} 13. O-O-O {[%clk
01:11:25]} {[%emt 00:03:08]} Qa5 {[%clk 00:38:08]} {[%emt 00:16:10]} 14. Nxd5
{[%clk 01:07:04]} {[%emt 00:04:51]} Qxd2+ {[%clk 00:38:33]} {[%emt 00:00:06]}
15. Rxd2 {[%clk 00:49:34]} {[%emt 00:17:59]} Bxd5 {[%clk 00:38:09]} {[%emt
00:00:54]} 16. Bh7+ {[%clk 00:49:35]} {[%emt 00:00:29]} Kxh7 {[%clk 00:38:35]}
{[%emt 00:00:05]} 17. Rxd5 {[%clk 00:49:54]} {[%emt 00:00:11]} b6 {[%clk
00:37:45]} {[%emt 00:01:20]} 18. Ne5 {[%clk 00:48:23]} {[%emt 00:02:01]} Bf6
{[%clk 00:33:53]} {[%emt 00:04:22]} 19. Nd7 {[%clk 00:45:15]} {[%emt 00:03:38]}
Nxd7 {[%clk 00:34:17]} {[%emt 00:00:05]} 20. Rxd7 {[%clk 00:45:44]} {[%emt
00:00:02]} Kg8 {[%clk 00:33:51]} {[%emt 00:00:55]} 21. Rhd1 {[%clk 00:41:18]}
{[%emt 00:04:56]} Rfd8 {[%clk 00:33:29]} {[%emt 00:00:53]} 22. c3 {[%clk
00:41:35]} {[%emt 00:00:13]} Kf8 {[%clk 00:28:41]} {[%emt 00:05:17]} 23. Rb7
{[%clk 00:40:18]} {[%emt 00:01:47]} Ke8 {[%clk 00:26:48]} {[%emt 00:02:24]} 24.
Re1 {[%clk 00:36:29]} {[%emt 00:04:17]} Kf8 {[%clk 00:26:03]} {[%emt 00:01:17]}
25. Bf4 {[%clk 00:33:38]} {[%emt 00:03:20]} Bh4 {[%clk 00:19:29]} {[%emt
00:07:04]} 26. Kc2 {[%clk 00:30:27]} {[%emt 00:03:42]} Re8 {[%clk 00:09:11]}
{[%emt 00:10:48]} 27. Bd6+ {[%clk 00:15:41]} {[%emt 00:15:15]} Kg8 {[%clk
00:09:32]} {[%emt 00:00:09]} 28. Rxe8+ {[%clk 00:15:37]} {[%emt 00:00:34]} Rxe8
{[%clk 00:10:01]} {[%emt 00:00:02]} 29. Rb8 {[%clk 00:14:22]} {[%emt 00:01:44]}
Rxb8 {[%clk 00:08:46]} {[%emt 00:01:45]} 30. Bxb8 {[%clk 00:14:51]} {[%emt
00:00:01]} a6 {[%clk 00:08:47]} {[%emt 00:00:30]} 31. Ba7 {[%clk 00:12:44]}
{[%emt 00:02:36]} Bd8 {[%clk 00:09:03]} {[%emt 00:00:14]} 32. Kd3 {[%clk
00:12:07]} {[%emt 00:01:07]} Kf8 {[%clk 00:08:45]} {[%emt 00:00:49]} 33. a4
{[%clk 00:12:17]} {[%emt 00:00:20]} Ke7 {[%clk 00:06:31]} {[%emt 00:02:44]} 34.
a5 {[%clk 00:12:26]} {[%emt 00:00:21]} bxa5 {[%clk 00:06:58]} {[%emt 00:00:02]}
35. Bxc5+ {[%clk 00:12:35]} {[%emt 00:00:22]} Kd7 {[%clk 00:07:00]} {[%emt
00:00:28]} 36. Kc4 {[%clk 00:11:46]} {[%emt 00:01:18]} Kc6 {[%clk 00:02:52]}
{[%emt 00:04:38]} 37. Bf8 {[%clk 00:11:47]} {[%emt 00:00:29]} Bf6 {[%clk
00:02:23]} {[%emt 00:01:00]} 38. f4 {[%clk 00:11:57]} {[%emt 00:00:20]} Kb6
{[%clk 00:01:52]} {[%emt 00:01:02]} 39. h4 {[%clk 00:11:49]} {[%emt 00:00:37]}
g6 {[%clk 00:01:44]} {[%emt 00:00:37]} 40. h5 {[%clk 00:12:08]} {[%emt
00:00:11]} gxh5 {[%clk 00:00:31]} {[%emt 00:01:44]} 41. gxh5 {[%clk 00:11:36]}
{[%emt 00:01:01]} 1-0

[Event "Masters Tournament (MTO)"]
[Site "Biel, Switzerland"]
[Date "2026.07.17"]
[Round "5.37"]
[White "Stevens, Christian"]
[Black "Fattori Dittmar, Luca"]
[Result "1/2-1/2"]
[TimeControl "100+30+30sec/move"]
[WhiteTitle "-"]
[BlackTitle "-"]
[WhiteFideId "649090"]
[BlackFideId "34678883"]
[WhiteElo "2014"]
[BlackElo "1840"]

1. c4 {[%clk 01:40:57]} {[%emt 00:00:02]} c6 {[%clk 01:40:32]} {[%emt
00:00:29]} 2. g3 {[%clk 01:40:48]} {[%emt 00:00:38]} d5 {[%clk 01:40:56]}
{[%emt 00:00:06]} 3. cxd5 {[%clk 01:40:36]} {[%emt 00:00:42]} cxd5 {[%clk
01:41:20]} {[%emt 00:00:07]} 4. Bg2 {[%clk 01:38:51]} {[%emt 00:02:13]} Nf6
{[%clk 01:41:25]} {[%emt 00:00:26]} 5. Nf3 {[%clk 01:39:02]} {[%emt 00:00:19]}
Nc6 {[%clk 01:41:32]} {[%emt 00:00:23]} 6. O-O {[%clk 01:38:32]} {[%emt
00:01:00]} Bg4 {[%clk 01:40:24]} {[%emt 00:01:38]} 7. h3 {[%clk 01:36:32]}
{[%emt 00:02:30]} Bxf3 {[%clk 01:40:04]} {[%emt 00:00:50]} 8. Bxf3 {[%clk
01:36:42]} {[%emt 00:00:20]} e6 {[%clk 01:40:08]} {[%emt 00:00:27]} 9. d3
{[%clk 01:35:19]} {[%emt 00:01:53]} Bd6 {[%clk 01:39:56]} {[%emt 00:00:42]} 10.
Nc3 {[%clk 01:34:57]} {[%emt 00:00:51]} a6 {[%clk 01:38:15]} {[%emt 00:02:12]}
11. Bg2 {[%clk 01:27:12]} {[%emt 00:08:14]} O-O {[%clk 01:37:22]} {[%emt
00:01:23]} 12. e4 {[%clk 01:20:20]} {[%emt 00:07:22]} Bc5 {[%clk 01:34:01]}
{[%emt 00:03:50]} 13. Bg5 {[%clk 01:16:01]} {[%emt 00:04:49]} dxe4 {[%clk
01:33:34]} {[%emt 00:00:59]} 14. dxe4 {[%clk 01:15:44]} {[%emt 00:00:46]} h6
{[%clk 01:32:39]} {[%emt 00:01:25]} 15. Qxd8 {[%clk 01:09:09]} {[%emt
00:07:05]} Rfxd8 {[%clk 01:32:57]} 16. Bxf6 {[%clk 01:08:57]} {[%emt 00:00:55]}
gxf6 {[%clk 01:33:24]} {[%emt 00:00:03]} 17. Rfd1 {[%clk 01:09:02]} {[%emt
00:00:24]} Nb4 {[%clk 01:29:13]} {[%emt 00:04:41]} 18. Bf1 {[%clk 01:02:41]}
{[%emt 00:06:50]} Bd4 {[%clk 01:28:59]} {[%emt 00:00:45]} 19. a3 {[%clk
01:00:17]} {[%emt 00:02:54]} Bxc3 {[%clk 01:23:23]} {[%emt 00:06:06]} 1/2-1/2

[Event "Masters Tournament (MTO)"]
[Site "Biel, Switzerland"]
[Date "2026.07.17"]
[Round "5.38"]
[White "Berezovskii, Arina"]
[Black "Arndt, Uwe"]
[Result "1-0"]
[TimeControl "100+30+30sec/move"]
[WhiteTitle "-"]
[BlackTitle "-"]
[WhiteFideId "34449850"]
[BlackFideId "24647713"]
[WhiteElo "1906"]
[BlackElo "2005"]

1. e4 {[%clk 01:40:59]} c6 {[%clk 01:40:53]} {[%emt 00:00:07]} 2. d4 {[%clk
01:41:25]} {[%emt 00:00:04]} d5 {[%clk 01:41:17]} {[%emt 00:00:05]} 3. exd5
{[%clk 01:41:51]} {[%emt 00:00:05]} cxd5 {[%clk 01:41:41]} {[%emt 00:00:07]} 4.
Bd3 {[%clk 01:42:16]} {[%emt 00:00:04]} Nc6 {[%clk 01:42:05]} {[%emt 00:00:06]}
5. c3 {[%clk 01:42:41]} {[%emt 00:00:05]} Qc7 {[%clk 01:42:21]} {[%emt
00:00:15]} 6. h3 {[%clk 01:43:05]} {[%emt 00:00:07]} Nf6 {[%clk 01:42:16]}
{[%emt 00:00:32]} 7. Nf3 {[%clk 01:43:29]} {[%emt 00:00:06]} e6 {[%clk
01:42:39]} {[%emt 00:00:08]} 8. O-O {[%clk 01:42:28]} {[%emt 00:01:30]} Bd6
{[%clk 01:42:58]} {[%emt 00:00:12]} 9. Re1 {[%clk 01:41:03]} {[%emt 00:01:56]}
O-O {[%clk 01:43:16]} {[%emt 00:00:12]} 10. Nbd2 {[%clk 01:30:31]} {[%emt
00:11:02]} Bd7 {[%clk 01:39:59]} {[%emt 00:03:46]} 11. Qe2 {[%clk 01:29:13]}
{[%emt 00:01:49]} Rfe8 {[%clk 01:35:38]} {[%emt 00:04:51]} 12. Ne5 {[%clk
01:27:26]} {[%emt 00:02:17]} a6 {[%clk 01:31:52]} {[%emt 00:04:16]} 13. a4
{[%clk 01:20:04]} {[%emt 00:07:52]} Na5 {[%clk 01:28:27]} {[%emt 00:03:53]} 14.
Bc2 {[%clk 01:15:43]} {[%emt 00:04:53]} b5 {[%clk 01:26:44]} {[%emt 00:02:13]}
15. Ndf3 {[%clk 01:12:34]} {[%emt 00:03:38]} b4 {[%clk 01:23:23]} {[%emt
00:03:51]} 16. Bg5 {[%clk 01:01:59]} {[%emt 00:11:05]} Ne4 {[%clk 01:17:57]}
{[%emt 00:05:56]} 17. Bxe4 {[%clk 00:55:42]} {[%emt 00:06:48]} dxe4 {[%clk
01:18:18]} {[%emt 00:00:08]} 18. Qxe4 {[%clk 00:56:03]} {[%emt 00:00:09]} Nb3
{[%clk 01:15:24]} {[%emt 00:03:25]} 19. Nxd7 {[%clk 00:39:26]} {[%emt
00:17:06]} Qxd7 {[%clk 01:15:11]} {[%emt 00:00:43]} 20. Rad1 {[%clk 00:38:32]}
{[%emt 00:01:24]} bxc3 {[%clk 01:13:52]} {[%emt 00:01:49]} 21. bxc3 {[%clk
00:38:37]} {[%emt 00:00:25]} Qxa4 {[%clk 01:12:45]} {[%emt 00:01:37]} 22. Qg4
{[%clk 00:35:45]} {[%emt 00:03:23]} Qc4 {[%clk 00:53:57]} {[%emt 00:19:18]} 23.
Bf6 {[%clk 00:30:08]} {[%emt 00:06:06]} Bf8 {[%clk 00:50:40]} {[%emt 00:03:46]}
24. Ne5 {[%clk 00:26:23]} {[%emt 00:04:17]} Qc7 {[%clk 00:44:55]} {[%emt
00:06:14]} 25. Re3 {[%clk 00:24:34]} {[%emt 00:02:19]} Kh8 {[%clk 00:44:56]}
{[%emt 00:00:29]} 26. Rg3 {[%clk 00:23:58]} {[%emt 00:01:06]} Kg8 {[%clk
00:43:41]} {[%emt 00:01:45]} 27. Qf4 {[%clk 00:19:19]} {[%emt 00:05:08]} Ra7
{[%clk 00:41:04]} {[%emt 00:03:07]} 28. Rxg7+ {[%clk 00:17:14]} {[%emt
00:02:36]} 1-0

[Event "Masters Tournament (MTO)"]
[Site "Biel, Switzerland"]
[Date "2026.07.17"]
[Round "5.39"]
[White "Rosen, Noah"]
[Black "Schmidt, Florian Pascal"]
[Result "0-1"]
[TimeControl "100+30+30sec/move"]
[WhiteTitle "-"]
[BlackTitle "-"]
[WhiteFideId "1356267"]
[BlackFideId "16256840"]
[WhiteElo "1921"]
[BlackElo "2095"]

1. e4 {[%clk 01:40:51]} {[%emt 00:00:07]} c5 {[%clk 01:40:57]} {[%emt
00:00:04]} 2. Nf3 {[%clk 01:41:15]} {[%emt 00:00:05]} d6 {[%clk 01:41:24]}
{[%emt 00:00:05]} 3. d4 {[%clk 01:41:38]} {[%emt 00:00:07]} cxd4 {[%clk
01:41:51]} {[%emt 00:00:01]} 4. Nxd4 {[%clk 01:42:02]} {[%emt 00:00:06]} Nf6
{[%clk 01:42:18]} {[%emt 00:00:03]} 5. Nc3 {[%clk 01:42:24]} {[%emt 00:00:07]}
a6 {[%clk 01:42:46]} {[%emt 00:00:05]} 6. Rg1 {[%clk 01:42:45]} {[%emt
00:00:07]} e5 {[%clk 01:42:58]} {[%emt 00:00:18]} 7. Nb3 {[%clk 01:43:09]}
{[%emt 00:00:06]} h5 {[%clk 01:42:56]} {[%emt 00:00:31]} 8. h3 {[%clk
01:43:22]} {[%emt 00:00:19]} Be6 {[%clk 01:43:21]} {[%emt 00:00:07]} 9. Be3
{[%clk 01:43:45]} {[%emt 00:00:04]} Nbd7 {[%clk 01:43:28]} {[%emt 00:00:23]} 10.
g4 {[%clk 01:41:26]} {[%emt 00:02:50]} hxg4 {[%clk 01:43:10]} {[%emt 00:00:48]}
11. hxg4 {[%clk 01:41:50]} {[%emt 00:00:06]} Rc8 {[%clk 01:18:59]} {[%emt
00:24:41]} 12. g5 {[%clk 01:35:40]} {[%emt 00:06:39]} Rxc3 {[%clk 01:18:58]}
{[%emt 00:00:32]} 13. gxf6 {[%clk 01:36:04]} {[%emt 00:00:06]} Rxe3+ {[%clk
01:19:24]} {[%emt 00:00:03]} 14. fxe3 {[%clk 01:36:27]} {[%emt 00:00:08]} Nxf6
{[%clk 01:19:28]} {[%emt 00:00:26]} 15. Qf3 {[%clk 01:31:10]} {[%emt 00:05:47]}
Qc8 {[%clk 00:59:25]} {[%emt 00:20:32]} 16. Bd3 {[%clk 01:18:03]} {[%emt
00:13:37]} Rh3 {[%clk 00:48:29]} {[%emt 00:11:26]} 17. Rg3 {[%clk 01:16:22]}
{[%emt 00:02:12]} Rh2 {[%clk 00:48:41]} {[%emt 00:00:17]} 18. Qf1 {[%clk
01:12:29]} {[%emt 00:04:23]} Rxc2 {[%clk 00:35:21]} {[%emt 00:13:51]} 19. Bxc2
{[%clk 01:10:58]} {[%emt 00:02:01]} Qxc2 {[%clk 00:35:46]} {[%emt 00:00:05]} 20.
Qg2 {[%clk 01:11:21]} {[%emt 00:00:07]} Qxe4 {[%clk 00:33:31]} {[%emt
00:02:45]} 21. Qxe4 {[%clk 01:10:22]} {[%emt 00:01:28]} Nxe4 {[%clk 00:33:58]}
{[%emt 00:00:03]} 22. Rg1 {[%clk 01:09:33]} {[%emt 00:01:20]} d5 {[%clk
00:30:15]} {[%emt 00:04:13]} 23. a3 {[%clk 01:02:54]} {[%emt 00:07:08]} d4
{[%clk 00:27:27]} {[%emt 00:03:18]} 24. Nd2 {[%clk 01:02:44]} {[%emt 00:00:40]}
Nxd2 {[%clk 00:27:50]} {[%emt 00:00:08]} 25. Kxd2 {[%clk 01:03:06]} {[%emt
00:00:08]} dxe3+ {[%clk 00:28:17]} {[%emt 00:00:03]} 26. Ke1 {[%clk 01:02:09]}
{[%emt 00:01:26]} f5 {[%clk 00:25:34]} {[%emt 00:03:13]} 27. Rc1 {[%emt
00:06:24]} Kf7 {[%clk 00:17:36]} {[%emt 00:06:30]} 28. Rc7+ {[%clk 00:58:34]}
{[%emt 00:00:10]} Kf6 {[%clk 00:17:56]} {[%emt 00:00:09]} 29. Rxb7 {[%clk
00:58:08]} {[%emt 00:00:56]} f4 {[%clk 00:17:15]} {[%emt 00:01:11]} 30. Rb6
{[%clk 00:56:18]} {[%emt 00:02:21]} Kf5 {[%clk 00:14:39]} {[%emt 00:03:06]} 31.
Rxe6 {[%clk 00:40:33]} {[%emt 00:16:14]} Kxe6 {[%clk 00:15:03]} {[%emt
00:00:07]} 32. Rg6+ {[%clk 00:40:43]} {[%emt 00:00:20]} Kf5 {[%clk 00:15:13]}
{[%emt 00:00:19]} 33. Rxa6 {[%clk 00:41:05]} {[%emt 00:00:08]} f3 {[%clk
00:15:32]} {[%emt 00:00:11]} 34. Ra7 {[%clk 00:36:05]} {[%emt 00:05:31]} Ke4
{[%clk 00:15:11]} {[%emt 00:00:51]} 35. b4 {[%clk 00:35:35]} {[%emt 00:01:00]}
e2 {[%clk 00:15:04]} {[%emt 00:00:37]} 36. Kd2 {[%clk 00:34:44]} {[%emt
00:01:21]} g6 {[%clk 00:13:02]} {[%emt 00:02:32]} 37. Rh7 {[%clk 00:34:03]}
{[%emt 00:01:10]} Kd4 {[%clk 00:10:53]} {[%emt 00:02:38]} 38. Rd7+ {[%clk
00:31:51]} {[%emt 00:02:44]} Kc4 {[%clk 00:10:52]} {[%emt 00:00:31]} 39. Rh7
{[%clk 00:29:56]} {[%emt 00:02:24]} e4 {[%clk 00:10:11]} {[%emt 00:01:11]} 40.
Rc7+ {[%clk 00:04:06]} {[%emt 00:26:20]} Kd4 {[%clk 00:09:50]} {[%emt
00:00:52]} 41. Rd7+ {[%clk 00:01:13]} {[%emt 00:03:22]} Ke5 {[%clk 00:09:19]}
{[%emt 00:01:01]} 42. Rf7 {[%clk 00:26:28]} {[%emt 00:05:16]} Bh6+ {[%clk
00:39:25]} {[%emt 00:00:24]} 43. Ke1 {[%clk 00:26:34]} {[%emt 00:00:24]} Bf4
{[%clk 00:37:28]} {[%emt 00:02:26]} 44. Rxf4 {[%clk 00:21:13]} {[%emt
00:05:51]} Kxf4 {[%clk 00:37:54]} {[%emt 00:00:04]} 45. Kf2 {[%clk 00:21:36]}
{[%emt 00:00:07]} e3+ {[%clk 00:38:21]} {[%emt 00:00:03]} 46. Ke1 {[%clk
00:21:57]} {[%emt 00:00:09]} Ke4 {[%clk 00:38:40]} {[%emt 00:00:11]} 47. b5
{[%clk 00:21:57]} {[%emt 00:00:31]} Kd3 {[%clk 00:39:06]} {[%emt 00:00:02]} 0-1

[Event "Masters Tournament (MTO)"]
[Site "Biel, Switzerland"]
[Date "2026.07.17"]
[Round "5.40"]
[White "Morrison, Joseph"]
[Black "Von Burg, Carl Alexander"]
[Result "1/2-1/2"]
[TimeControl "100+30+30sec/move"]
[WhiteTitle "-"]
[BlackTitle "-"]
[WhiteFideId "479535"]
[BlackFideId "1352458"]
[WhiteElo "2048"]
[BlackElo "1947"]

1. d4 {[%clk 01:40:56]} {[%emt 00:00:03]} d5 {[%clk 01:40:17]} {[%emt
00:00:44]} 2. c4 {[%clk 01:41:21]} {[%emt 00:00:06]} c6 {[%clk 01:40:42]}
{[%emt 00:00:06]} 3. Nc3 {[%clk 01:41:46]} {[%emt 00:00:04]} Nf6 {[%clk
01:41:03]} {[%emt 00:00:08]} 4. e3 {[%clk 01:42:08]} {[%emt 00:00:11]} Bf5
{[%clk 01:40:36]} {[%emt 00:00:55]} 5. Nf3 {[%clk 01:42:29]} {[%emt 00:00:11]}
e6 {[%clk 01:39:55]} {[%emt 00:01:09]} 6. Nh4 {[%clk 01:42:38]} {[%emt
00:00:21]} Bg6 {[%clk 01:40:02]} {[%emt 00:00:23]} 7. Bd2 {[%clk 01:41:49]}
{[%emt 00:01:19]} Nbd7 {[%clk 01:39:06]} {[%emt 00:01:26]} 8. Qb3 {[%clk
01:37:12]} {[%emt 00:05:07]} Qc7 {[%clk 01:38:09]} {[%emt 00:01:26]} 9. Be2
{[%clk 01:33:37]} {[%emt 00:04:06]} Ne4 {[%clk 01:34:22]} {[%emt 00:04:17]} 10.
Nxg6 {[%clk 01:18:30]} {[%emt 00:15:37]} Nxd2 {[%clk 01:33:47]} {[%emt
00:01:04]} 11. Kxd2 {[%clk 01:18:16]} {[%emt 00:00:45]} hxg6 {[%clk 01:33:56]}
{[%emt 00:00:20]} 12. h3 {[%clk 01:15:09]} {[%emt 00:03:38]} dxc4 {[%clk
01:27:14]} {[%emt 00:07:12]} 13. Bxc4 {[%clk 01:12:31]} {[%emt 00:03:08]} Nb6
{[%clk 01:22:19]} {[%emt 00:05:25]} 14. Kc2 {[%clk 01:10:11]} {[%emt 00:02:50]}
Nxc4 {[%clk 01:17:23]} {[%emt 00:05:26]} 15. Qxc4 {[%clk 01:10:38]} {[%emt
00:00:03]} O-O-O {[%clk 01:11:41]} {[%emt 00:06:11]} 16. Rad1 {[%clk 01:05:17]}
{[%emt 00:05:51]} Kb8 {[%clk 01:10:41]} {[%emt 00:01:29]} 17. e4 {[%clk
00:57:19]} {[%emt 00:08:30]} Qf4 {[%clk 01:08:04]} {[%emt 00:03:06]} 18. Rd2
{[%clk 00:56:03]} {[%emt 00:01:46]} Be7 {[%clk 01:01:36]} {[%emt 00:06:58]} 19.
Qe2 {[%clk 00:54:19]} {[%emt 00:02:15]} Bb4 {[%clk 00:56:12]} {[%emt 00:05:51]}
20. Rd3 {[%clk 00:51:09]} {[%emt 00:03:40]} 1/2-1/2

[Event "Masters Tournament (MTO)"]
[Site "Biel, Switzerland"]
[Date "2026.07.17"]
[Round "5.41"]
[White "Corbat, Philippe"]
[Black "Malli, Shiivesh Sunil"]
[Result "1-0"]
[TimeControl "100+30+30sec/move"]
[WhiteTitle "-"]
[BlackTitle "-"]
[WhiteFideId "1304496"]
[BlackFideId "1340409"]
[WhiteElo "1893"]
[BlackElo "1994"]

1. e4 {[%clk 01:40:50]} {[%emt 00:00:11]} c5 {[%clk 01:38:06]} {[%emt
00:02:53]} 2. a3 {[%clk 01:40:59]} {[%emt 00:00:21]} Nc6 {[%clk 01:38:25]}
{[%emt 00:00:11]} 3. b4 {[%clk 01:41:04]} {[%emt 00:00:25]} cxb4 {[%clk
01:37:16]} {[%emt 00:01:38]} 4. axb4 {[%clk 01:41:24]} {[%emt 00:00:11]} Nxb4
{[%clk 01:33:52]} {[%emt 00:03:54]} 5. c3 {[%clk 01:41:36]} {[%emt 00:00:18]}
Nc6 {[%clk 01:33:59]} {[%emt 00:00:23]} 6. d4 {[%clk 01:41:15]} {[%emt
00:00:50]} d5 {[%clk 01:34:03]} {[%emt 00:00:26]} 7. exd5 {[%clk 01:41:24]}
{[%emt 00:00:21]} Qxd5 {[%clk 01:34:18]} {[%emt 00:00:15]} 8. Na3 {[%clk
01:39:45]} {[%emt 00:02:10]} e6 {[%clk 01:25:51]} {[%emt 00:08:57]} 9. Nb5
{[%clk 01:37:44]} {[%emt 00:02:30]} Bd6 {[%clk 01:24:59]} {[%emt 00:01:21]} 10.
Qg4 {[%clk 01:34:43]} {[%emt 00:03:31]} Nce7 {[%clk 01:08:21]} {[%emt
00:17:09]} 11. Qxg7 {[%clk 01:19:16]} {[%emt 00:15:56]} Ng6 {[%clk 01:08:10]}
{[%emt 00:00:41]} 12. Nf3 {[%clk 01:12:25]} {[%emt 00:07:22]} Bd7 {[%clk
01:03:36]} {[%emt 00:05:02]} 13. Ng5 {[%clk 01:02:00]} {[%emt 00:10:56]} Bxb5
{[%clk 00:57:16]} {[%emt 00:06:52]} 14. Qxf7+ {[%clk 01:01:13]} {[%emt
00:01:16]} Kd8 {[%clk 00:57:34]} {[%emt 00:00:12]} 15. Nxe6+ {[%clk 01:00:02]}
{[%emt 00:01:41]} Kc8 {[%clk 00:57:38]} {[%emt 00:00:25]} 16. Bxb5 {[%clk
00:57:56]} {[%emt 00:02:37]} Qxb5 {[%clk 00:57:32]} {[%emt 00:00:36]} 17. Rb1
{[%clk 00:53:13]} {[%emt 00:05:13]} Qd7 {[%clk 00:52:08]} {[%emt 00:05:54]} 18.
Rxb7 {[%clk 00:52:23]} {[%emt 00:01:20]} Qxf7 {[%clk 00:52:26]} {[%emt
00:00:10]} 19. Rxf7 {[%clk 00:52:50]} {[%emt 00:00:05]} N8e7 {[%clk 00:52:05]}
{[%emt 00:00:50]} 20. O-O {[%clk 00:50:00]} {[%emt 00:03:21]} Kd7 {[%clk
00:45:29]} {[%emt 00:07:07]} 21. Ng5 {[%clk 00:42:45]} {[%emt 00:07:44]} h5
{[%clk 00:35:18]} {[%emt 00:10:41]} 22. Ne4 {[%clk 00:40:34]} {[%emt 00:02:41]}
Bc7 {[%clk 00:32:12]} {[%emt 00:03:35]} 23. c4 {[%clk 00:34:52]} {[%emt
00:06:13]} Raf8 {[%clk 00:22:41]} {[%emt 00:10:00]} 24. Rxf8 {[%clk 00:32:36]}
{[%emt 00:02:48]} Nxf8 {[%clk 00:21:18]} {[%emt 00:01:52]} 25. Be3 {[%clk
00:31:06]} {[%emt 00:02:01]} Nf5 {[%clk 00:18:26]} {[%emt 00:03:21]} 26. Ra1
{[%clk 00:29:23]} {[%emt 00:02:13]} Nxe3 {[%clk 00:10:58]} {[%emt 00:07:58]} 27.
fxe3 {[%clk 00:29:41]} {[%emt 00:00:12]} Bb8 {[%clk 00:01:54]} {[%emt
00:09:35]} 28. Ra6 {[%clk 00:25:33]} {[%emt 00:04:37]} Kc8 {[%clk 00:00:55]}
{[%emt 00:01:29]} 29. d5 {[%clk 00:22:57]} {[%emt 00:03:06]} Nd7 {[%clk
00:00:43]} {[%emt 00:00:41]} 30. c5 {[%clk 00:20:31]} {[%emt 00:02:57]} Re8
{[%clk 00:00:31]} {[%emt 00:00:42]} 31. Re6 {[%clk 00:15:26]} {[%emt 00:05:35]}
Rxe6 {[%clk 00:00:50]} {[%emt 00:00:11]} 32. dxe6 {[%clk 00:15:51]} {[%emt
00:00:05]} Nf8 {[%clk 00:00:32]} {[%emt 00:00:49]} 33. e7 {[%clk 00:16:03]}
{[%emt 00:00:18]} 1-0